bitfinex/quotes_BTCUSD_20241120
["timestamp","ask_amount","ask_price","bid_price","bid_amount"]
[1732094190551,0.00065685,93447.0,93446.0,0.48045043]
[1732094191749,0.00065685,93447.0,93446.0,0.44997555]
[1732094192192,0.00065685,93447.0,93446.0,0.48044104]
[1732094192623,0.00065685,93447.0,93446.0,0.44997555]
[1732094192836,0.00065685,93447.0,93446.0,0.45197555]
[1732094193046,0.00065685,93447.0,93446.0,0.48243265]
[1732094193499,0.00065685,93447.0,93446.0,0.73436648]
[1732094195110,8.5e-07,93447.0,93446.0,0.50541358]
[1732094195785,0.001,93463.0,93462.0,0.5484]
[1732094196013,0.001,93463.0,93462.0,0.53411658]
[1732094196226,0.001,93463.0,93462.0,0.45195755]
[1732094197576,0.001,93463.0,93462.0,0.68859392]
[1732094198461,0.001,93463.0,93462.0,0.45195755]
[1732094199547,0.001,93463.0,93462.0,0.36485755]
[1732094200024,0.001,93463.0,93462.0,0.50274605]
[1732094200246,0.001,93463.0,93462.0,0.40813398]
[1732094201867,0.001,93463.0,93462.0,0.41813398]
[1732094202525,0.001,93463.0,93462.0,0.51269991]
[1732094202755,0.001,93463.0,93462.0,0.41813398]
[1732094202965,0.001,93463.0,93462.0,0.51269991]
[1732094203173,0.001,93463.0,93462.0,0.41813398]
[1732094205736,0.0018556,93463.0,93462.0,0.41813398]
[1732094206631,0.0018556,93463.0,93462.0,0.40813398]
[1732094206856,0.0018556,93463.0,93458.0,0.18915803]
[1732094206857,0.0794,93462.0,93456.0,0.107002]
[1732094207092,0.0794,93462.0,93461.0,0.106996]
[1732094207313,0.0794,93462.0,93461.0,0.21605855]
[1732094208021,0.0018556,93463.0,93462.0,0.106995]
[1732094208248,0.0018556,93463.0,93462.0,0.21605755]
[1732094209116,0.0812556,93463.0,93462.0,0.21605755]
[1732094209999,0.0812556,93463.0,93462.0,0.106995]
[1732094210635,0.0612556,93463.0,93462.0,0.106995]
[1732094213932,0.0612556,93463.0,93461.0,0.1]
[1732094214159,0.00101955,93469.0,93461.0,0.1]
[1732094214160,0.231895,93462.0,93461.0,0.1]
[1732094214390,0.49687333,93462.0,93461.0,0.1]
[1732094214598,0.50687333,93462.0,93461.0,0.1]
[1732094215049,0.55023349,93462.0,93461.0,0.1]
[1732094216187,0.52723349,93462.0,93461.0,0.1]
[1732094216427,0.241895,93462.0,93461.0,0.1]
[1732094216647,0.231895,93462.0,93461.0,0.1]
[1732094217096,0.1249,93462.0,93461.0,0.1]
[1732094217785,0.231895,93462.0,93461.0,0.1]
[1732094219320,0.2327504,93462.0,93461.0,0.1]
[1732094220213,0.35181295,93462.0,93461.0,0.1]
[1732094220425,0.2327504,93462.0,93461.0,0.1]
[1732094221858,0.35181295,93462.0,93461.0,0.1]
[1732094223088,0.36181295,93462.0,93461.0,0.1]
[1732094223308,0.38481295,93462.0,93461.0,0.1]
[1732094223549,0.42767183,93462.0,93461.0,0.1]
[1732094223964,0.42967183,93462.0,93461.0,0.0219]
[1732094224877,0.37812778,93447.0,93446.0,0.0017112]
[1732094225085,0.48719033,93447.0,93446.0,0.0017112]
[1732094225535,0.46419033,93447.0,93446.0,0.0017112]
[1732094226320,0.48719033,93447.0,93446.0,0.0017112]
[1732094227932,0.48919033,93447.0,93446.0,0.0017112]
[1732094228164,0.58919033,93447.0,93446.0,0.0017112]
[1732094228394,0.58919033,93447.0,93444.0,0.0017112]
[1732094228395,0.376913,93446.0,93444.0,0.0017112]
[1732094228616,0.376913,93446.0,93422.0,0.0017108]
[1732094228617,0.24194,93423.0,93422.0,0.0017108]
[1732094228823,0.35100255,93423.0,93422.0,0.0017108]
[1732094229247,0.36100255,93423.0,93422.0,0.0017108]
[1732094231948,0.38400255,93423.0,93422.0,0.0017108]
[1732094232171,0.48400255,93423.0,93422.0,0.0017108]
[1732094232833,0.48600255,93423.0,93422.0,0.0017108]
[1732094234481,0.43295978,93419.0,93418.0,0.0017108]
[1732094234695,0.56702233,93419.0,93418.0,0.0017108]
[1732094235771,0.56502233,93419.0,93418.0,0.0017108]
[1732094236198,0.56702233,93419.0,93418.0,0.0017108]
[1732094237116,0.60770966,93419.0,93418.0,0.0017108]
[1732094239977,0.60970966,93419.0,93418.0,0.0017108]
[1732094241057,0.60770966,93419.0,93418.0,0.0017108]
[1732094241508,0.60970966,93419.0,93418.0,0.0017108]
[1732094241712,0.60970966,93419.0,93418.0,0.00078427]
[1732094243493,0.59970966,93419.0,93418.0,0.00078427]
[1732094243701,0.60970966,93419.0,93418.0,0.00078427]
[1732094244832,0.60770966,93419.0,93418.0,0.00078427]
[1732094246909,0.56230966,93419.0,93418.0,0.00078427]
[1732094247142,0.12906255,93419.0,93418.0,0.00078427]
[1732094247372,0.0008558,93422.0,93418.0,0.00078427]
[1732094247597,0.01,93419.0,93418.0,0.00078427]
[1732094249350,0.23610655,93419.0,93418.0,0.00078427]
[1732094250652,0.11906255,93419.0,93418.0,0.00078427]
[1732094250868,0.02,93419.0,93418.0,0.00078427]
[1732094251083,0.127044,93419.0,93418.0,0.00078427]
[1732094253006,0.0008558,93422.0,93421.0,0.152142]
[1732094253428,0.0008558,93422.0,93421.0,0.252142]
[1732094253639,0.0008558,93422.0,93421.0,0.330842]
[1732094256944,0.0008558,93422.0,93421.0,0.43990455]
[1732094258893,0.0008558,93422.0,93421.0,0.45990455]
[1732094259100,0.0108554,93462.0,93451.0,0.0761]
[1732094259306,0.0108554,93462.0,93455.0,0.107003]
[1732094259536,0.0108554,93462.0,93438.0,0.1]
[1732094259759,0.0108554,93462.0,93451.0,0.107006]
[1732094259980,0.1178504,93462.0,93453.0,0.107005]
[1732094260661,0.1178504,93462.0,93451.0,0.107006]
[1732094260662,0.2148474,93462.0,93451.0,0.214013]
[1732094260881,0.0108554,93462.0,93452.0,0.107006]
[1732094261112,0.106996,93461.0,93453.0,0.107005]
[1732094261325,0.01,93455.0,93422.0,0.1]
[1732094261591,0.01,93451.0,93437.0,0.107023]
[1732094261821,0.107017,93443.0,93433.0,0.107027]
[1732094262052,0.023,93448.0,93436.0,0.107024]
[1732094262290,0.214022,93448.0,93434.0,0.207026]
[1732094262521,0.10906255,93451.0,93434.0,0.207026]
[1732094262522,0.214025,93447.0,93434.0,0.207026]
[1732094262761,0.107019,93442.0,93434.0,0.207026]
[1732094263238,0.0763,93441.0,93434.0,0.107026]
[1732094263693,0.0763,93441.0,93432.0,0.1]
[1732094263924,0.183319,93441.0,93432.0,0.207029]
[1732094264156,0.0763,93441.0,93434.0,0.107026]
[1732094264366,0.0763,93441.0,93426.0,0.107035]
[1732094264367,0.0763,93441.0,93429.0,0.1]
[1732094264574,0.107022,93439.0,93430.0,0.107031]
[1732094264785,0.0763,93441.0,93423.0,0.107039]
[1732094264987,0.0763,93441.0,93418.0,0.10782927]
[1732094264988,0.01,93434.0,93418.0,0.10782927]
[1732094265192,0.01,93434.0,93419.0,0.107043]
[1732094265193,0.107034,93429.0,93419.0,0.107043]
[1732094265475,0.107034,93429.0,93420.0,0.107042]
[1732094265685,0.107034,93429.0,93421.0,0.107042]
[1732094265911,0.214059,93432.0,93418.0,0.00078427]
[1732094265912,0.023,93431.0,93425.0,0.107037]
[1732094266124,0.023,93431.0,93418.0,0.10782927]
[1732094266125,0.107033,93430.0,93419.0,0.107044]
[1732094266324,0.023,93433.0,93421.0,0.107041]
[1732094266555,0.107033,93429.0,93421.0,0.107041]
[1732094266994,0.107033,93429.0,93419.0,0.107044]
[1732094266995,0.107033,93429.0,93422.0,0.10704]
[1732094267627,0.107044,93419.0,93418.0,0.00078427]
[1732094267886,0.107037,93425.0,93418.0,0.00078427]
[1732094268099,0.0763,93426.0,93418.0,0.00078427]
[1732094268302,0.107042,93421.0,93418.0,0.00078427]
[1732094268783,0.10704,93423.0,93417.0,0.09078427]
[1732094269017,0.107042,93421.0,93417.0,0.09078427]
[1732094269276,0.107042,93421.0,93416.0,0.201711]
[1732094269495,0.107043,93420.0,93416.0,0.201711]
[1732094269733,0.107046,93417.0,93416.0,0.201711]
[1732094271345,0.107045,93418.0,93416.0,0.201711]
[1732094272209,0.224077,93424.0,93416.0,0.201711]
[1732094272450,0.107044,93420.0,93416.0,0.201711]
[1732094272662,0.107041,93422.0,93416.0,0.201711]
[1732094272881,0.33313955,93424.0,93416.0,0.201711]
[1732094273174,0.107044,93419.0,93416.0,0.201711]
[1732094273403,0.33313955,93424.0,93416.0,0.201711]
[1732094273856,0.107044,93420.0,93416.0,0.201711]
[1732094274102,0.214082,93422.0,93416.0,0.201711]
[1732094274325,0.107045,93419.0,93416.0,0.201711]
[1732094275189,0.062066,93421.0,93416.0,0.201711]
[1732094275418,0.11906255,93424.0,93416.0,0.201711]
[1732094275419,0.107044,93420.0,93416.0,0.201711]
[1732094275901,0.11906255,93424.0,93416.0,0.201711]
[1732094276096,0.107043,93421.0,93416.0,0.201711]
[1732094276739,0.10906255,93424.0,93418.0,0.107045]
[1732094276987,0.0008558,93429.0,93422.0,0.10704]
[1732094277189,0.0008558,93429.0,93428.0,0.107034]
[1732094278274,0.0008558,93429.0,93426.0,0.107036]
[1732094278482,0.0008558,93429.0,93427.0,0.107034]
[1732094278682,0.0008558,93429.0,93423.0,0.188339]
[1732094278891,0.0008558,93429.0,93423.0,0.0813]
[1732094279110,0.0008558,93429.0,93426.0,0.107035]
[1732094279241,0.0008558,93429.0,93428.0,0.107034]
[1732094281982,0.0008558,93429.0,93421.0,0.14264292]
[1732094282449,0.0008558,93429.0,93421.0,0.1]
[1732094282664,0.0008558,93429.0,93424.0,0.107037]
[1732094283115,0.1078898,93429.0,93424.0,0.107037]
[1732094283330,0.107041,93422.0,93418.0,0.1017116]
[1732094283603,0.214068,93428.0,93418.0,0.1017116]
[1732094283604,0.107043,93421.0,93418.0,0.0017116]
[1732094283811,0.107044,93420.0,93418.0,0.0017116]
[1732094284016,0.107044,93419.0,93418.0,0.0017116]
[1732094284223,0.214082,93422.0,93418.0,0.0017116]
[1732094284456,0.107043,93421.0,93418.0,0.0017116]
[1732094284658,0.107043,93420.0,93418.0,0.0017116]
[1732094284879,0.107041,93422.0,93418.0,0.0017116]
[1732094285077,0.21408,93423.0,93418.0,0.0017116]
[1732094285282,0.10906255,93427.0,93418.0,0.0017116]
[1732094285486,0.107042,93421.0,93419.0,0.00470199]
[1732094285712,0.107043,93420.0,93419.0,0.00470199]
[1732094286126,0.107044,93419.0,93418.0,0.0017116]
[1732094287674,0.0008558,93429.0,93418.0,0.0017116]
[1732094288301,0.0008558,93429.0,93423.0,0.107039]
[1732094288504,0.0008558,93429.0,93418.0,0.0017116]
[1732094288753,0.107034,93428.0,93423.0,0.107039]
[1732094288958,0.107036,93427.0,93421.0,0.107041]
[1732094289170,0.2149228,93429.0,93418.0,0.0017116]
[1732094289378,0.107039,93424.0,93418.0,0.1087566]
[1732094289585,0.10906255,93424.0,93418.0,0.0017116]
[1732094289797,0.21408,93423.0,93418.0,0.0017116]
[1732094290012,0.107043,93420.0,93418.0,0.0017116]
[1732094290675,0.21408,93423.0,93418.0,0.0017116]
[1732094290891,0.10906255,93424.0,93418.0,0.0017116]
[1732094291109,0.107042,93421.0,93418.0,0.0017116]
[1732094292024,0.0008558,93429.0,93418.0,0.0017116]
[1732094292263,0.0008558,93429.0,93428.0,0.107034]
[1732094294134,0.0008558,93429.0,93426.0,0.107036]
[1732094294344,0.0008558,93429.0,93427.0,0.107035]
[1732094294549,0.0008558,93429.0,93428.0,0.107034]
[1732094295339,0.0008558,93429.0,93428.0,0.102034]
[1732094298340,0.0008558,93429.0,93428.0,0.202034]
[1732094298532,0.0008558,93429.0,93428.0,0.31109655]
[1732094298737,0.0008558,93429.0,93428.0,0.43999655]
[1732094301213,0.0008558,93429.0,93428.0,0.58239186]
[1732094302223,0.0008558,93429.0,93428.0,0.43999655]
[1732094302426,0.0008558,93429.0,93428.0,0.58239186]
[1732094303005,0.0008558,93429.0,93428.0,0.43999655]
[1732094303475,0.0008558,93429.0,93428.0,0.46199655]
[1732094303882,0.0008558,93429.0,93428.0,0.69932207]
[1732094304209,0.0008558,93429.0,93428.0,0.202034]
[1732094304302,0.0008558,93429.0,93428.0,0.34434957]
[1732094304514,0.0008558,93429.0,93428.0,0.7172279]
[1732094304748,0.0008558,93429.0,93428.0,0.57491233]
[1732094304952,0.0008558,93429.0,93428.0,0.58491233]
[1732094305387,0.0008558,93429.0,93428.0,0.61539545]
[1732094305625,0.0008558,93429.0,93428.0,0.89983991]
[1732094306056,0.0008558,93429.0,93428.0,0.61339545]
[1732094306268,0.0008558,93429.0,93428.0,0.61539545]
[1732094306727,0.0008558,93429.0,93428.0,0.58491233]
[1732094307359,0.0008558,93429.0,93428.0,0.58291233]
[1732094307946,0.0008558,93429.0,93428.0,0.57291233]
[1732094308712,0.0008558,93429.0,93428.0,0.56793861]
[1732094308909,0.0008558,93429.0,93428.0,0.102034]
[1732094310332,0.0008558,93429.0,93428.0,0.201034]
[1732094311328,0.0008558,93429.0,93428.0,0.101034]
[1732094311766,0.0008558,93429.0,93421.0,0.0017116]
[1732094312028,0.0008558,93429.0,93423.0,0.107039]
[1732094312484,0.0008558,93429.0,93421.0,0.1087536]
[1732094312485,0.107041,93422.0,93421.0,0.0017116]
[1732094316108,0.235041,93422.0,93421.0,0.0017116]
[1732094318123,0.36710355,93422.0,93421.0,0.0017116]
[1732094320199,0.37710355,93422.0,93421.0,0.0017116]
[1732094321854,0.214073,93426.0,93421.0,0.0017116]
[1732094322107,0.21610055,93424.0,93421.0,0.0017116]
[1732094322300,0.107037,93425.0,93421.0,0.0017116]
[1732094322570,0.0839558,93429.0,93421.0,0.0017116]
[1732094322571,0.107035,93427.0,93421.0,0.0017116]
[1732094322769,0.10906255,93428.0,93421.0,0.0017116]
[1732094322770,0.107036,93426.0,93421.0,0.1087526]
[1732094323365,0.107035,93427.0,93421.0,0.1087526]
[1732094323577,0.21609655,93428.0,93423.0,0.107039]
[1732094323785,0.107037,93426.0,93421.0,0.0017116]
[1732094323985,0.01,93426.0,93421.0,0.0017116]
[1732094324202,0.10906255,93428.0,93421.0,0.0017116]
[1732094324203,0.10704,93423.0,93421.0,0.0017116]
[1732094324955,0.107041,93422.0,93421.0,0.0017116]
[1732094325581,0.214079,93424.0,93421.0,0.0017116]
[1732094325785,0.107041,93423.0,93421.0,0.0017116]
[1732094325956,0.107041,93422.0,93421.0,0.0017116]
[1732094326990,0.01,93426.0,93421.0,0.0017116]
[1732094327173,0.107038,93424.0,93421.0,0.0017116]
[1732094327591,0.107036,93427.0,93422.0,0.10704]
[1732094327792,0.10906255,93428.0,93421.0,0.0017116]
[1732094327793,0.107037,93426.0,93421.0,0.0017116]
[1732094328010,0.107037,93426.0,93421.0,0.1087536]
[1732094328852,0.10906255,93428.0,93421.0,0.0017116]
[1732094329107,0.107035,93427.0,93422.0,0.21408]
[1732094329321,0.0008558,93429.0,93421.0,0.0017116]
[1732094329322,0.107036,93426.0,93421.0,0.0017116]
[1732094329703,0.10991835,93429.0,93421.0,0.0017116]
[1732094329907,0.107037,93426.0,93421.0,0.0017116]
[1732094330703,0.1078888,93429.0,93424.0,0.107038]
[1732094331116,0.1078888,93429.0,93416.0,0.18051043]
[1732094331325,0.01,93426.0,93416.0,0.18051043]
[1732094331531,0.214087,93420.0,93416.0,0.18051043]
[1732094331800,0.107046,93417.0,93416.0,0.18051043]
[1732094332484,0.214077,93424.0,93416.0,0.18051043]
[1732094332485,0.0831,93427.0,93417.0,0.107046]
[1732094332710,0.0831,93427.0,93418.0,0.107045]
[1732094332923,0.107038,93425.0,93420.0,0.107043]
[1732094333160,0.19216255,93427.0,93418.0,0.107045]
[1732094333390,0.107039,93424.0,93418.0,0.107045]
[1732094333600,0.107039,93424.0,93416.0,0.18051043]
[1732094333601,0.236446,93417.0,93416.0,0.18051043]
[1732094333813,0.38850855,93417.0,93416.0,0.18051043]
[1732094336097,0.39050855,93417.0,93416.0,0.18051043]
[1732094336303,0.38850855,93417.0,93416.0,0.18051043]
[1732094337572,0.43124142,93417.0,93416.0,0.18051043]
[1732094339907,0.38850855,93417.0,93416.0,0.18051043]
[1732094340125,0.38850855,93417.0,93416.0,0.18222163]
[1732094340336,0.37850855,93417.0,93416.0,0.18222163]
[1732094340559,0.34550855,93417.0,93416.0,0.18222163]
[1732094340773,0.35550855,93417.0,93416.0,0.18222163]
[1732094341241,0.34550855,93417.0,93416.0,0.18222163]
[1732094341690,0.35550855,93417.0,93416.0,0.18222163]
[1732094341909,0.34550855,93417.0,93416.0,0.18222163]
[1732094342112,0.35550855,93417.0,93416.0,0.18222163]
[1732094343337,0.30920855,93417.0,93416.0,0.18222163]
[1732094343712,0.21610855,93417.0,93416.0,0.18222163]
[1732094343918,0.107042,93421.0,93416.0,0.18222163]
[1732094344121,0.10906255,93420.0,93416.0,0.18222163]
[1732094344650,0.21610655,93420.0,93416.0,0.18222163]
[1732094344923,0.107046,93418.0,93416.0,0.18222163]
[1732094345320,0.214073,93426.0,93416.0,0.18222163]
[1732094345522,0.10906255,93426.0,93416.0,0.18222163]
[1732094345728,0.107045,93419.0,93416.0,0.18222163]
[1732094345941,0.214077,93424.0,93416.0,0.18222163]
[1732094346142,0.214077,93424.0,93416.0,0.28926863]
[1732094346379,0.107045,93419.0,93416.0,0.18222163]
[1732094347623,0.107046,93417.0,93416.0,0.18222163]
[1732094348463,0.023,93423.0,93416.0,0.18222163]
[1732094348688,0.214082,93422.0,93416.0,0.18222163]
[1732094348899,0.107046,93417.0,93416.0,0.18222163]
[1732094349126,0.130046,93417.0,93416.0,0.18222163]
[1732094349323,0.213146,93417.0,93416.0,0.18222163]
[1732094349697,0.32220855,93417.0,93416.0,0.18222163]
[1732094351815,0.33220855,93417.0,93416.0,0.18222163]
[1732094352183,0.33306425,93417.0,93416.0,0.18222163]
[1732094354677,0.37671891,93417.0,93416.0,0.18222163]
[1732094355688,0.23996425,93417.0,93416.0,0.18222163]
[1732094359054,0.24996425,93417.0,93416.0,0.18222163]
[1732094360035,0.37526425,93417.0,93416.0,0.18222163]
[1732094360670,0.38526425,93417.0,93416.0,0.18222163]
[1732094361487,0.38526425,93417.0,93400.0,0.5]
[1732094361488,0.023,93415.0,93401.0,0.107065]
[1732094361614,0.107054,93411.0,93405.0,0.10706]
[1732094361817,0.107054,93411.0,93406.0,0.00486446]
[1732094362025,0.107057,93409.0,93406.0,0.00486446]
[1732094362222,0.107057,93408.0,93402.0,0.214125]
[1732094362514,0.107055,93410.0,93403.0,0.00486446]
[1732094362641,0.107056,93409.0,93404.0,0.10706]
[1732094362856,0.107055,93410.0,93405.0,0.00486444]
[1732094363221,0.107056,93410.0,93405.0,0.00486444]
[1732094363455,0.214105,93412.0,93405.0,0.00486444]
[1732094363710,0.107055,93410.0,93406.0,0.00486444]
[1732094363941,0.023,93413.0,93406.0,0.11192244]
[1732094364157,0.023,93413.0,93403.0,0.107062]
[1732094364383,0.0008557,93417.0,93416.0,0.107048]
[1732094364605,0.0008557,93417.0,93411.0,0.107053]
[1732094364817,0.0008557,93417.0,93416.0,0.00485961]
[1732094365029,0.0008557,93417.0,93402.0,0.00189135]
[1732094365030,0.0008557,93417.0,93415.0,0.107048]
[1732094365302,0.0008557,93417.0,93416.0,0.11190761]
[1732094367627,0.0008557,93417.0,93416.0,0.19010761]
[1732094369452,0.0008557,93417.0,93416.0,0.29010761]
[1732094370110,0.0008557,93417.0,93416.0,0.40917016]
[1732094372014,0.0008556,93428.0,93427.0,0.33995078]
[1732094372223,0.0008556,93428.0,93427.0,0.63885672]
[1732094372431,0.0008556,93428.0,93427.0,0.45369796]
[1732094372963,0.0008556,93428.0,93427.0,0.77093753]
[1732094373565,0.0008556,93428.0,93427.0,0.58119796]
[1732094373767,0.0008558,93429.0,93428.0,0.02]
[1732094374016,0.0008554,93463.0,93428.0,0.02]
[1732094374017,0.0008554,93463.0,93461.0,0.106996]
[1732094380341,0.0008554,93463.0,93461.0,0.206996]
[1732094380542,0.0008554,93463.0,93461.0,0.21221385]
[1732094387444,0.0008554,93463.0,93461.0,0.00521785]
[1732094387644,0.0008554,93463.0,93461.0,0.21221385]
[1732094387881,0.0008554,93463.0,93461.0,0.10521785]
[1732094388502,0.0008554,93463.0,93461.0,0.21221385]
[1732094390305,0.0008554,93463.0,93461.0,0.11221385]
[1732094411714,0.0008554,93463.0,93461.0,0.00521785]
[1732094411925,0.24991295,93462.0,93461.0,0.00521785]
[1732094412158,0.24991295,93462.0,93433.0,0.107027]
[1732094412159,0.10702,93440.0,93433.0,0.107027]
[1732094412381,0.0817,93443.0,93439.0,0.10702]
[1732094412614,0.0817,93443.0,93429.0,0.0017112]
[1732094412615,0.0817,93443.0,93436.0,0.107024]
[1732094412829,0.107006,93453.0,93440.0,0.00507875]
[1732094413030,0.107006,93453.0,93435.0,0.08213578]
[1732094413031,0.023,93450.0,93435.0,0.08213578]
[1732094413254,0.023,93448.0,93441.0,0.00517522]
[1732094413477,0.023,93448.0,93436.0,0.107024]
[1732094413478,0.107015,93445.0,93436.0,0.107024]
[1732094413710,0.023,93448.0,93436.0,0.107024]
[1732094413946,0.107018,93443.0,93437.0,0.10519224]
[1732094414151,0.107018,93442.0,93437.0,0.10519224]
[1732094414364,0.214025,93447.0,93437.0,0.10519224]
[1732094414575,0.107013,93447.0,93440.0,0.107019]
[1732094414841,0.1229706,93474.0,93437.0,0.00519224]
[1732094415060,0.1229706,93474.0,93433.0,0.2229706]
[1732094415061,0.023,93451.0,93444.0,0.107015]
[1732094415282,0.19076255,93454.0,93444.0,0.107015]
[1732094415283,0.0817,93454.0,93444.0,0.107015]
[1732094415511,0.0817,93454.0,93449.0,0.10701]
[1732094415512,0.188705,93454.0,93449.0,0.10701]
[1732094415728,0.188705,93454.0,93448.0,0.107011]
[1732094415929,0.188705,93454.0,93450.0,0.00520219]
[1732094416161,0.295696,93460.0,93451.0,0.107006]
[1732094416369,0.023,93459.0,93440.0,0.00214017]
[1732094416588,0.107007,93452.0,93446.0,0.107013]
[1732094417210,0.214004,93456.0,93447.0,0.00520221]
[1732094417343,0.107005,93454.0,93448.0,0.107011]
[1732094417553,0.107003,93456.0,93450.0,0.107008]
[1732094417791,0.023,93459.0,93453.0,0.107005]
[1732094417792,0.107,93458.0,93453.0,0.107005]
[1732094417983,0.023,93457.0,93453.0,0.107005]
[1732094418191,0.40475755,93460.0,93454.0,0.00520219]
[1732094418192,0.023,93459.0,93454.0,0.00520219]
[1732094418358,0.107,93458.0,93454.0,0.00520219]
[1732094418582,0.023,93459.0,93453.0,0.107004]
[1732094418782,0.107,93458.0,93455.0,0.00520217]
[1732094418981,0.107002,93457.0,93454.0,0.00520221]
[1732094419185,0.130002,93457.0,93456.0,0.00520215]
[1732094419367,0.130002,93457.0,93451.0,0.107007]
[1732094419571,0.130002,93457.0,93456.0,0.00520213]
[1732094419817,0.107007,93452.0,93446.0,0.107013]
[1732094419985,0.107005,93453.0,93447.0,0.107012]
[1732094420190,0.023,93458.0,93447.0,0.107012]
[1732094420191,0.107002,93456.0,93450.0,0.107008]
[1732094420395,0.107003,93455.0,93450.0,0.107008]
[1732094420888,0.023,93458.0,93451.0,0.00520219]
[1732094421100,0.107004,93455.0,93450.0,0.107008]
[1732094421328,0.107004,93455.0,93452.0,0.00520222]
[1732094421570,0.107004,93455.0,93450.0,0.107008]
[1732094422978,0.023,93458.0,93444.0,0.107015]
[1732094423306,0.107004,93454.0,93448.0,0.107011]
[1732094423920,0.107003,93455.0,93449.0,0.00520224]
[1732094424096,0.107004,93454.0,93448.0,0.107011]
[1732094424311,0.107004,93454.0,93450.0,0.00520224]
[1732094424518,0.023,93458.0,93448.0,0.10701]
[1732094424721,0.023,93458.0,93445.0,0.107014]
[1732094424722,0.107003,93455.0,93451.0,0.0052022]
[1732094424950,0.107003,93455.0,93450.0,0.107009]
[1732094425153,0.023,93458.0,93452.0,0.00520222]
[1732094425362,0.107005,93454.0,93448.0,0.10701]
[1732094425570,0.10701,93450.0,93445.0,0.107014]
[1732094425692,0.107007,93452.0,93449.0,0.00521604]
[1732094425902,0.107007,93452.0,93445.0,0.107013]
[1732094426107,0.107007,93452.0,93450.0,0.00521599]
[1732094426344,0.107007,93452.0,93447.0,0.107012]
[1732094426548,0.107004,93454.0,93451.0,0.00521597]
[1732094426828,0.107005,93453.0,93447.0,0.107011]
[1732094427025,0.107005,93453.0,93452.0,0.00521599]
[1732094427244,0.023,93458.0,93442.0,0.107017]
[1732094427245,0.107012,93448.0,93442.0,0.107017]
[1732094427512,0.023,93458.0,93444.0,0.107015]
[1732094427746,0.023,93458.0,93442.0,0.107017]
[1732094427747,0.10701,93449.0,93443.0,0.00520114]
[1732094427946,0.107009,93451.0,93445.0,0.11221528]
[1732094428152,0.107009,93451.0,93445.0,0.107014]
[1732094428485,0.107009,93451.0,93446.0,0.00520375]
[1732094428893,0.107009,93451.0,93446.0,0.11221675]
[1732094429109,0.023,93458.0,93447.0,0.107012]
[1732094429334,0.0017112,93459.0,93458.0,0.106999]
[1732094429562,0.0017112,93459.0,93449.0,0.10701]
[1732094429775,0.0017112,93459.0,93458.0,0.1121999]
[1732094429993,0.0017112,93459.0,93458.0,0.106999]
[1732094430219,0.0017112,93459.0,93458.0,0.1121999]
[1732094430430,0.0017112,93459.0,93458.0,0.2121999]
[1732094435034,0.0017112,93459.0,93458.0,0.255076]
[1732094436614,0.0016712,93459.0,93458.0,0.255076]
[1732094440331,0.0016712,93459.0,93458.0,0.2121999]
[1732094440921,0.0016712,93459.0,93458.0,0.1121999]
[1732094449484,0.0016712,93459.0,93458.0,0.15614594]
[1732094451575,0.0016712,93459.0,93458.0,0.15828562]
[1732094453048,0.0016712,93459.0,93458.0,0.3971061]
[1732094453251,0.0016712,93459.0,93458.0,0.53909689]
[1732094453459,0.0016712,93459.0,93458.0,0.39650849]
[1732094453661,0.0016712,93459.0,93458.0,0.53905869]
[1732094453823,0.0016712,93459.0,93458.0,0.39650849]
[1732094454675,0.0016712,93459.0,93458.0,0.7687351]
[1732094454886,0.0016712,93459.0,93458.0,0.57861723]
[1732094455053,0.0016712,93459.0,93458.0,0.49650849]
[1732094455880,0.0016712,93459.0,93458.0,0.57861723]
[1732094456281,0.0016712,93459.0,93458.0,0.58061723]
[1732094456483,0.0016712,93459.0,93458.0,0.66272597]
[1732094456725,0.0016712,93459.0,93458.0,0.66072597]
[1732094457118,0.0016712,93459.0,93458.0,0.67072597]
[1732094458827,0.0016712,93459.0,93458.0,0.50650849]
[1732094459030,0.0016712,93459.0,93458.0,0.58861723]
[1732094459485,0.0016712,93459.0,93458.0,0.59061723]
[1732094459692,0.0016712,93459.0,93458.0,0.58861723]
[1732094461762,0.0016712,93459.0,93458.0,0.82600751]
[1732094462833,0.0016712,93459.0,93458.0,0.60259877]
[1732094463051,0.0016712,93459.0,93458.0,0.15614594]
[1732094464589,0.0016712,93459.0,93458.0,0.25614594]
[1732094465233,0.0016712,93459.0,93458.0,0.14914694]
[1732094465692,0.0016712,93459.0,93458.0,0.25614594]
[1732094469085,0.0016712,93459.0,93458.0,0.37520849]
[1732094469281,0.0016712,93459.0,93458.0,0.37606419]
[1732094469904,0.0016712,93459.0,93458.0,0.38606419]
[1732094470105,0.0016712,93459.0,93458.0,0.48106538]
[1732094470323,0.0016712,93459.0,93458.0,0.38606419]
[1732094470984,0.0016712,93459.0,93458.0,0.38806419]
[1732094471200,0.0016712,93459.0,93458.0,0.62553433]
[1732094471421,0.0016712,93459.0,93458.0,0.38806419]
[1732094471832,0.0016712,93459.0,93458.0,0.47017293]
[1732094472112,0.0016712,93459.0,93458.0,0.59407293]
[1732094472306,0.0016712,93459.0,93458.0,0.59207293]
[1732094472721,0.0016712,93459.0,93458.0,0.59407293]
[1732094473584,0.0016712,93459.0,93458.0,0.51196419]
[1732094473778,0.0016712,93459.0,93458.0,0.50996419]
[1732094474186,0.0016712,93459.0,93458.0,0.51196419]
[1732094474588,0.0016712,93459.0,93458.0,0.59407293]
[1732094475193,0.0016712,93459.0,93458.0,0.62462363]
[1732094475626,0.0016712,93459.0,93458.0,0.59207293]
[1732094475842,0.0016712,93459.0,93458.0,0.54051243]
[1732094476036,0.0016712,93459.0,93458.0,0.54251243]
[1732094476802,0.0016712,93459.0,93458.0,0.62262117]
[1732094477480,0.0016712,93459.0,93458.0,0.62462117]
[1732094478060,0.0016712,93459.0,93458.0,0.61462117]
[1732094478268,0.0016712,93459.0,93458.0,0.62262117]
[1732094478502,0.0016712,93459.0,93458.0,0.70672991]
[1732094478927,0.0016712,93459.0,93458.0,0.70472991]
[1732094479124,0.0016712,93459.0,93458.0,0.70672991]
[1732094480741,2e-07,93459.0,93458.0,0.70672991]
[1732094481412,1e-06,93488.0,93487.0,0.01]
[1732094481625,0.00010961,93492.0,93491.0,0.226962]
[1732094481838,0.00010961,93492.0,93491.0,0.41312455]